fUSD/lending_fUSD_20240119
["ID","MTS","AMOUNT","RATE_DAILY","PERIOD"]
[312240154,1705699834141,-3332.31348525,0.00022779,2]
[312240155,1705699834152,-800.0,0.00022795,2]
[312240156,1705699834161,-500.0,0.00022799,2]
[312240157,1705699834171,-222923.06180764,0.000228,2]
[312240158,1705699834185,-900.0,0.000228,2]
[312240159,1705699834197,-579.59745,0.000228,2]
[312240160,1705699834214,-588.94638895,0.000228,2]
[312240161,1705699834228,-600.0,0.000228,2]
[312240162,1705699834240,-763.87956881,0.000228,2]
[312240163,1705699834252,-2887.94746135,0.000228,2]
[312240164,1705699834305,-431.46487485,0.000228,2]
[312240165,1705699834317,-600.1261207,0.000228,2]
[312240166,1705699834328,-14724.9763277,0.000228,2]
[312240167,1705699834338,-5909.5063,0.00022879,2]
[312240168,1705699834347,-4224.34279945,0.00022879,2]
[312240172,1705699838372,-2916.61749416,0.000227,2]
[312240173,1705699838386,-1987.3623,0.000227,2]
[312240174,1705699838483,-559.28171963,0.000227,2]
[312240175,1705699838494,-1172.8,0.000227,2]
[312240176,1705699838649,-2817.60525576,0.000227,2]
[312240177,1705699838707,-288.48372167,0.000227,2]
[312240179,1705699838719,-716.53939924,0.000227,2]
[312240392,1705699840986,-1161.31870997,0.000227,2]
[312240401,1705699841063,-355.72425126,0.000227,2]
[312240623,1705699843280,-617.13064126,0.000227,3]
[312240629,1705699843337,-1293.51966163,0.000227,3]
[312240631,1705699843346,-12350.31360628,0.000227,2]
[312240651,1705699843568,-750.24600574,0.000227,2]
[312240934,1705699846398,-1165.264,0.000227,2]
[312243115,1705700389097,-378.35,0.00019354,2]
[312243127,1705700907664,387.48,0.00018841,2]
[312243163,1705701031726,-1178.56113027,0.00020152,2]
[312243164,1705701031737,-327.24908451,0.00020153,2]
[312243165,1705701031746,-508.10231497,0.00020201,2]
[312243166,1705701031765,-412.35173192,0.00020151,2]
[312243167,1705701031775,-52.46324501,0.00020201,2]
[312243168,1705701031789,-872.0,0.00020627,2]
[312243169,1705701031798,-745.6,0.00020664,2]
[312243170,1705701031808,-1495.39,0.00020674,2]
[312243171,1705701031817,-200.0,0.00020911,2]
[312243173,1705701031826,-1221.11,0.00020911,2]
[312243174,1705701031836,-2305.72236774,0.00020942,2]
[312243176,1705701031847,-2328.27893327,0.00020942,2]
[312243178,1705701031858,-461.43417062,0.00020942,2]
[312243180,1705701031870,-655.60712406,0.00020942,2]
[312243183,1705701031893,-13534.10560431,0.00020942,2]
[312243185,1705701031903,-155.49,0.00020976,2]
[312243187,1705701031912,-500.0,0.0002099,2]
[312243189,1705701031921,-150.0,0.00021014,2]
[312243191,1705701031931,-150.0,0.00021041,2]
[312243192,1705701031940,-237.24,0.00021041,2]
[312243194,1705701031949,-3168.51,0.00021042,2]
[312243196,1705701031959,-9564.74,0.00021042,2]
[312243198,1705701031969,-150.99,0.00021042,2]
[312243200,1705701031978,-322.05,0.00021042,2]
[312243202,1705701031987,-387.48,0.00021105,2]
[312243203,1705701031997,-153.12,0.00021142,2]
[312243205,1705701032006,-160.0,0.00021256,2]
[312243207,1705701032015,-500.0,0.00021256,2]
[312243209,1705701032025,-151.83,0.00021256,2]
[312243211,1705701032035,-153.12,0.00021301,2]
[312243213,1705701032044,-150.99,0.00021305,2]
[312243215,1705701032054,-1170.93541987,0.00021458,2]
[312243217,1705701032063,-153.12,0.00021459,2]
[312243219,1705701032073,-499.99,0.00021459,2]
[312243221,1705701032082,-2080.3,0.00021459,2]
[312243222,1705701032091,-154.35,0.00021468,2]
[312243224,1705701032100,-153.12,0.00021618,2]
[312243226,1705701032110,-745.6,0.00021642,2]
[312243228,1705701032119,-153.12,0.00021776,2]
[312243230,1705701032129,-164.96,0.000219,2]
[312243232,1705701032139,-7513.35583929,0.00021905,2]
[312243234,1705701032148,-250.0,0.00021918,2]
[312243235,1705701032157,-153.12,0.00021935,2]
[312243236,1705701032166,-22733.1358,0.00021947,2]
[312243237,1705701032175,-155.49,0.00021962,2]
[312243238,1705701032184,-1033.62092452,0.00022047,3]
[312243239,1705701032193,-19878.0226,0.00022047,2]
[312243240,1705701032202,-11670.44261335,0.00022047,2]
[312243241,1705701032217,-291.09812629,0.00022047,2]
[312243242,1705701032228,-395.76320725,0.00022047,2]
[312243243,1705701032251,-1852.16166621,0.00022047,2]
[312243244,1705701032324,-1065.54810808,0.00022047,2]
[312243245,1705701032336,-1341.53946258,0.00022047,2]
[312243246,1705701032347,-298.38963629,0.00022047,2]
[312243247,1705701032359,-387.61028032,0.00022047,2]
[312243248,1705701032373,-5434.27358325,0.00022047,2]
[312243249,1705701032384,-1428.89313008,0.00022047,2]
[312243250,1705701032395,-2147.15410892,0.00022047,2]
[312243251,1705701032424,-6668.52324087,0.00022047,2]
[312243252,1705701032437,-1158.03807734,0.00022047,2]
[312243253,1705701032448,-354.11977769,0.00022047,2]
[312243254,1705701032460,-619.10457445,0.00022047,2]
[312243255,1705701032473,-726.75012479,0.00022047,2]
[312243257,1705701037647,-12269.83491588,0.00022047,2]
[312243258,1705701037675,-51890.75536636,0.00022047,2]
[312243259,1705701037685,-466.1419,0.00022047,2]
[312243260,1705701037695,-153.12,0.00022094,2]
[312243261,1705701037705,-180.83764367,0.00022146,2]
[312243262,1705701037715,-500.0,0.00022146,2]
[312243263,1705701037725,-3646.65562424,0.00022147,2]
[312243264,1705701037817,-4902.54171779,0.00022147,2]
[312243286,1705701040009,-757.91521654,0.00022147,2]
[312243287,1705701040022,-586.93037929,0.00022147,2]
[312243288,1705701040750,-271.77763036,0.00022147,2]
[312243337,1705701045526,-1176.84796761,0.00022146,2]
[312243338,1705701045535,-85382.40161186,0.00022147,2]
[312243339,1705701045548,-2495.0566057,0.00022147,2]
[312243340,1705701045588,-412.35173192,0.00022146,2]
[312243341,1705701045599,-2125.69258682,0.00022147,2]
[312243342,1705701045651,-456.002,0.00022147,2]
[312243343,1705701045773,-436.34852955,0.00022147,2]
[312243344,1705701045786,-41753.69399998,0.00022147,2]
[312243345,1705701045834,-716.32220065,0.00022147,2]
[312243351,1705701224132,-2017.16752558,0.00020197,2]
[312243352,1705701224152,-528.06914432,0.00020198,2]
[312243353,1705701224171,-327.24908451,0.00020199,2]
[312243354,1705701224190,-556.68758297,0.00020201,2]
[312243355,1705701224209,-500.0,0.00021489,2]
[312243356,1705701224227,-166.52,0.00021591,10]
[312243357,1705701224246,-404.62,0.0002168,2]
[312243358,1705701224265,-99.68666262,0.00021947,2]
[312243362,1705701442474,376.79,0.00019335,2]
[312243363,1705701493704,5193.19967638,0.00019335,2]
[312243364,1705701507679,3077.28312281,0.00019335,2]
[312243459,1705702231776,-386.74,0.00019473,2]
[312243460,1705702231788,-1332.60551001,0.00020809,2]
[312243461,1705702231834,-512.69287336,0.00020809,2]
[312243467,1705702237728,-1215.50706986,0.00020809,2]
[312243468,1705702237839,-3716.00032649,0.00020809,2]
[312243469,1705702237849,-561.39967351,0.0002081,2]
[312243470,1705702238067,-23308.60032649,0.0002081,2]
[312243473,1705702238078,-315.96,0.00020934,2]
[312243475,1705702238088,-832.58,0.00020944,2]
[312243476,1705702238097,-150.0,0.00020973,2]
[312243477,1705702238106,-166.52,0.00020974,10]
[312243478,1705702238116,-302.4,0.00021015,2]
[312243479,1705702238126,-158.2,0.00021077,2]
[312243480,1705702238135,-165.51,0.0002111,2]
[312243481,1705702238146,-312.08,0.00021225,2]
[312243482,1705702238154,-312.08,0.00021359,2]
[312243483,1705702238164,-697.6,0.00021391,2]
[312243484,1705702238173,-312.08,0.00021493,2]
[312243485,1705702238182,-499.99,0.00021551,2]
[312243486,1705702238193,-312.08,0.00021627,2]
[312243487,1705702238204,-1040.53388432,0.00021737,3]
[312243488,1705702238213,-386.74,0.00021737,2]
[312243489,1705702238223,-1000.0,0.00021756,2]
[312243490,1705702238233,-399.52,0.00021757,2]
[312243492,1705702238242,-12431.29,0.00021757,2]
[312243494,1705702238251,-312.08,0.00021761,2]
[312243495,1705702238261,-156.31,0.0002184,2]
[312243497,1705702238270,-312.08,0.00021895,2]
[312243499,1705702238280,-250.0,0.00021918,2]
[312243501,1705702238290,-832.58,0.00021923,2]
[312243503,1705702238299,-279.3351,0.00021946,2]
[312243505,1705702238309,-3581.9117,0.00021946,2]
[312243507,1705702238318,-2544.47718939,0.00021947,2]
[312243510,1705702238327,-3367.90196432,0.00021947,2]
[312243512,1705702238337,-37253.87663738,0.00021947,2]
[312243514,1705702238346,-1000.0,0.00022,2]
[312243516,1705702238355,-1250.0,0.00022,3]
[312243517,1705702238365,-150.0,0.00022,2]
[312243519,1705702238374,-352.26,0.00022,2]
[312243521,1705702238384,-312.08,0.00022029,2]
[312243523,1705702238393,-190.0931973,0.00022036,2]
[312243525,1705702238402,-435.21804576,0.00022044,2]
[312243528,1705702238412,-500.0,0.00022045,2]
[312243529,1705702238421,-151.012,0.00022045,3]
[312243531,1705702238431,-151.012,0.00022045,3]
[312243534,1705702238440,-151.012,0.00022045,3]
[312243536,1705702238449,-151.012,0.00022045,3]
[312243538,1705702238459,-151.012,0.00022045,3]
[312243540,1705702238468,-151.012,0.00022045,3]
[312243542,1705702238477,-151.012,0.00022045,3]
[312243543,1705702238486,-151.012,0.00022045,3]
[312243546,1705702238495,-151.012,0.00022045,3]
[312243547,1705702238505,-151.012,0.00022045,3]
[312243550,1705702238514,-151.012,0.00022045,3]
[312243551,1705702238523,-151.012,0.00022045,3]
[312243554,1705702238533,-151.012,0.00022045,3]
[312243555,1705702238541,-151.012,0.00022045,3]
[312243558,1705702238551,-151.012,0.00022045,3]
[312243560,1705702238560,-151.012,0.00022045,3]
[312243561,1705702238570,-151.012,0.00022045,3]
[312243563,1705702238579,-151.012,0.00022045,3]
[312243565,1705702238588,-151.012,0.00022045,3]
[312243567,1705702238597,-151.012,0.00022045,3]
[312243569,1705702238607,-151.012,0.00022045,3]
[312243571,1705702238616,-151.012,0.00022045,3]
[312243573,1705702238625,-151.012,0.00022045,3]
[312243575,1705702238634,-151.012,0.00022045,3]
[312243578,1705702238643,-151.012,0.00022045,3]
[312243579,1705702238653,-151.012,0.00022045,3]
[312243582,1705702238662,-151.012,0.00022045,3]
[312243584,1705702238672,-151.012,0.00022045,3]
[312243586,1705702238681,-215.012,0.00022045,3]
[312243587,1705702238690,-7437.555,0.00022046,2]
[312243590,1705702238700,-42391.3133,0.00022046,2]
[312243592,1705702238711,-453519.81800512,0.00022046,2]
[312243594,1705702238720,-171.78762555,0.00022047,2]
[312243596,1705702238729,-38578.4385,0.00022047,2]
[312243598,1705702238739,-158.2,0.00022068,2]
[312243599,1705702238751,-364.02742498,0.00022144,2]
[312243601,1705702238761,-32182.84955851,0.00022145,2]
[312243604,1705702238772,-19241.15805752,0.00022147,2]
[312243606,1705702238781,-2324.52506785,0.00022147,2]
[312243608,1705702238790,-282.90032781,0.00022147,2]
[312243610,1705702238801,-4387.40271906,0.00022147,2]
[312243612,1705702238810,-4040.2177478,0.00022147,2]
[312243613,1705702238820,-1897.75273507,0.00022147,2]
[312243615,1705702238829,-312.08,0.00022164,2]
[312243616,1705702238838,-165.51,0.0002221,2]
[312243618,1705702238847,-153.12,0.00022252,2]
[312243620,1705702238856,-312.08,0.00022298,2]
[312243622,1705702238865,-3367.90196426,0.00022359,2]
[312243624,1705702238874,-1000.0,0.00022367,2]
[312243626,1705702238882,-153.12,0.00022411,2]
[312243628,1705702238891,-312.08,0.00022432,2]
[312243630,1705702238901,-1478.0343822,0.00022448,2]
[312243632,1705702238910,-379.70289,0.00022471,2]
[312243634,1705702238919,-154.35,0.00022478,2]
[312243636,1705702238927,-6925.40269882,0.0002249,5]
[312243638,1705702238937,-1688.0,0.00022495,2]
[312243640,1705702238949,-12242.60596385,0.000225,2]
[312243642,1705702238957,-431.82,0.0002251,2]
[312243644,1705702238967,-1688.0,0.00022518,2]
[312243646,1705702238975,-151.0,0.00022562,7]
[312243648,1705702238985,-151.0,0.00022562,7]
[312243650,1705702238993,-151.0,0.00022562,7]
[312243651,1705702239002,-151.0,0.00022562,7]
[312243663,1705702239012,-151.0,0.00022562,7]
[312243664,1705702239256,-151.0,0.00022562,7]
[312243665,1705702239266,-151.428382,0.00022562,7]
[312243666,1705702239275,-151.0,0.00022562,7]
[312243667,1705702239285,-286.41363,0.00022562,7]
[312243668,1705702239294,-151.0,0.00022562,7]
[312243669,1705702239303,-151.0,0.00022562,7]
[312243670,1705702239313,-151.0,0.00022562,7]
[312243671,1705702239322,-151.0,0.00022562,7]
[312243672,1705702239332,-249.248004,0.00022562,7]
[312243673,1705702239341,-249.248004,0.00022562,7]
[312243674,1705702239351,-312.08,0.00022566,2]
[312243676,1705702239360,-151.0,0.00022569,7]
[312243677,1705702239369,-151.0,0.00022569,7]
[312243678,1705702239378,-151.0,0.00022569,7]
[312243679,1705702239387,-151.0,0.00022569,7]
[312243680,1705702239396,-151.0,0.00022569,7]
[312243681,1705702239405,-151.0,0.00022569,7]
[312243682,1705702239414,-151.0,0.00022569,7]
[312243683,1705702239424,-151.0,0.00022569,7]
[312243685,1705702239434,-190.383556,0.00022569,7]
[312243686,1705702239443,-190.383556,0.00022569,7]
[312243687,1705702239452,-490.757942,0.00022569,7]
[312243688,1705702239461,-490.757942,0.00022569,7]
[312243689,1705702239470,-151.0,0.00022569,7]
[312243690,1705702239479,-151.0,0.00022569,7]
[312243691,1705702239488,-151.0,0.00022569,7]
[312243692,1705702239498,-992.361723,0.00022569,7]
[312243693,1705702239507,-992.361723,0.00022569,7]
[312243694,1705702239516,-153.12,0.00022569,2]
[312243695,1705702239526,-500.0,0.00022593,2]
[312243696,1705702239535,-19119.1455636,0.00022698,2]
[312243697,1705702239545,-244.64133608,0.00022698,2]
[312243698,1705702239554,-726.87796621,0.00022698,2]
[312243699,1705702239563,-721.63252663,0.00022698,4]
[312243700,1705702239573,-151.012,0.00022698,3]
[312243701,1705702239582,-151.012,0.00022698,3]
[312243702,1705702239592,-151.012,0.00022698,3]
[312243703,1705702239601,-151.012,0.00022698,3]
[312243704,1705702239611,-151.012,0.00022698,3]
[312243705,1705702239620,-151.012,0.00022698,3]
[312243706,1705702239630,-151.012,0.00022698,3]
[312243707,1705702239639,-151.012,0.00022698,3]
[312243708,1705702239648,-151.012,0.00022698,3]
[312243709,1705702239657,-151.012,0.00022698,3]
[312243710,1705702239667,-151.012,0.00022698,3]
[312243711,1705702239677,-151.012,0.00022698,3]
[312243712,1705702239686,-151.012,0.00022698,3]
[312243713,1705702239695,-151.012,0.00022698,3]
[312243714,1705702239704,-151.012,0.00022698,3]
[312243715,1705702239713,-151.012,0.00022698,3]
[312243716,1705702239722,-151.012,0.00022698,3]
[312243718,1705702239732,-151.012,0.00022698,3]
[312243720,1705702239741,-151.012,0.00022698,3]
[312243721,1705702239750,-151.012,0.00022698,3]
[312243723,1705702239760,-151.012,0.00022698,3]
[312243725,1705702239769,-151.012,0.00022698,3]
[312243727,1705702239781,-151.012,0.00022698,3]
[312243729,1705702239790,-151.012,0.00022698,3]
[312243731,1705702239798,-151.012,0.00022698,3]
[312243733,1705702239807,-151.012,0.00022698,3]
[312243735,1705702239816,-151.012,0.00022698,3]
[312243737,1705702239825,-151.012,0.00022698,3]
[312243739,1705702239835,-151.012,0.00022698,3]
[312243741,1705702239844,-151.012,0.00022698,3]
[312243743,1705702239853,-151.012,0.00022698,3]
[312243745,1705702239862,-151.012,0.00022698,3]
[312243746,1705702239871,-151.012,0.00022698,3]
[312243747,1705702239880,-151.012,0.00022698,3]
[312243748,1705702239890,-151.012,0.00022698,3]
[312243749,1705702239899,-151.012,0.00022698,3]
[312243750,1705702239909,-151.012,0.00022698,3]
[312243751,1705702239918,-151.012,0.00022698,3]
[312243752,1705702239928,-151.012,0.00022698,3]
[312243753,1705702239937,-151.012,0.00022698,3]
[312243754,1705702239946,-151.012,0.00022698,3]
[312243755,1705702239955,-151.012,0.00022698,3]
[312243756,1705702239964,-151.012,0.00022698,3]
[312243757,1705702239976,-151.012,0.00022698,3]
[312243758,1705702239986,-151.012,0.00022698,3]
[312243759,1705702239995,-151.012,0.00022698,3]
[312243760,1705702240005,-151.012,0.00022698,3]
[312243761,1705702240014,-151.012,0.00022698,3]
[312243762,1705702240025,-203.012,0.00022698,3]
[312243764,1705702240035,-163.94799858,0.00022698,2]
[312243766,1705702240046,-265.36528495,0.00022698,2]
[312243768,1705702240056,-200.0,0.00022698,2]
[312243770,1705702240064,-179.0,0.00022698,2]
[312243771,1705702240074,-625.89989292,0.00022699,2]
[312243772,1705702240083,-312.08,0.000227,2]
[312243773,1705702240092,-151.0,0.000227,7]
[312243774,1705702240102,-151.0,0.000227,7]
[312243775,1705702240111,-151.0,0.000227,7]
[312243776,1705702240120,-155.0,0.00022701,2]
[312243777,1705702240129,-153.12,0.00022728,2]
[312243778,1705702240138,-3367.90196426,0.00022771,2]
[312243779,1705702240148,-800.0,0.00022796,2]
[312243780,1705702240157,-9657.21655381,0.000228,2]
[312243781,1705702240167,-312.08,0.00022834,2]
[312243782,1705702240176,-155.11,0.00022856,2]
[312243783,1705702240185,-165.92298533,0.0002288,2]
[312243784,1705702240198,-186.87447348,0.0002288,2]
[312243785,1705702240207,-153.12,0.00022887,2]
[312243786,1705702240217,-155.0,0.00022898,2]
[312243787,1705702240227,-151.0,0.00022899,7]
[312243788,1705702240238,-296.47609401,0.00022899,2]
[312243789,1705702240248,-4105.39986096,0.00022899,2]
[312243790,1705702240257,-1231.98586178,0.00022899,2]
[312243791,1705702240265,-33501.56160572,0.000229,2]
[312243792,1705702240275,-19867.1966668,0.000229,2]
[312243793,1705702240285,-151.0,0.000229,7]
[312243794,1705702240296,-151.0,0.000229,7]
[312243795,1705702240305,-151.0,0.000229,7]
[312243796,1705702240314,-151.0,0.000229,7]
[312243797,1705702240324,-151.0,0.000229,7]
[312243798,1705702240333,-151.0,0.000229,7]
[312243799,1705702240343,-151.0,0.000229,7]
[312243800,1705702240353,-151.0,0.000229,7]
[312243801,1705702240362,-151.0,0.000229,7]
[312243802,1705702240371,-176.254087,0.000229,7]
[312243803,1705702240381,-151.0,0.000229,7]
[312243804,1705702240390,-151.0,0.000229,7]
[312243805,1705702240399,-151.0,0.000229,7]
[312243806,1705702240409,-164.29767,0.000229,7]
[312243807,1705702240419,-249.248004,0.000229,7]
[312243808,1705702240428,-249.248004,0.000229,7]
[312243809,1705702240438,-249.248004,0.000229,7]
[312243810,1705702240447,-249.248004,0.000229,7]
[312243811,1705702240457,-151.0,0.000229,7]
[312243812,1705702240466,-180.861334,0.000229,7]
[312243813,1705702240475,-152.29625497,0.000229,2]
[312243814,1705702240484,-189.117484,0.000229,7]
[312243815,1705702240494,-201609.14,0.000229,2]
[312243816,1705702240503,-171.78762555,0.000229,2]
[312243817,1705702240512,-151.0,0.000229,7]
[312243818,1705702240521,-151.0,0.000229,7]
[312243819,1705702240530,-190.383556,0.000229,7]
[312243820,1705702240539,-190.383556,0.000229,7]
[312243821,1705702240548,-190.383556,0.000229,7]
[312243822,1705702240557,-190.383556,0.000229,7]
[312243823,1705702240565,-490.757942,0.000229,7]
[312243824,1705702240574,-490.757942,0.000229,7]
[312243825,1705702240583,-490.757942,0.000229,7]
[312243826,1705702240592,-490.757942,0.000229,7]
[312243827,1705702240601,-151.0,0.000229,7]
[312243828,1705702240611,-151.0,0.000229,7]
[312243829,1705702240620,-992.361723,0.000229,7]
[312243830,1705702240630,-992.361723,0.000229,7]
[312243831,1705702240639,-992.361723,0.000229,7]
[312243832,1705702240649,-992.361723,0.000229,7]
[312243833,1705702240658,-832.58,0.00022901,2]
[312243834,1705702240668,-155.49,0.00022949,2]
[312243835,1705702240678,-312.08,0.00022968,2]
[312243836,1705702240687,-341.87083974,0.00022979,2]
[312243837,1705702240696,-3296.87897521,0.00022979,2]
[312243838,1705702240705,-169535.04780593,0.0002298,2]
[312243839,1705702240714,-609.85464141,0.0002298,2]
[312243840,1705702240723,-274903.67534747,0.0002298,2]
[312243841,1705702240732,-153.111628,0.0002298,7]
[312243842,1705702240742,-212.125984,0.0002298,7]
[312243843,1705702240751,-151.0,0.0002298,7]
[312243844,1705702240760,-151.0,0.0002298,7]
[312243845,1705702240769,-249.248004,0.0002298,7]
[312243846,1705702240778,-249.248004,0.0002298,7]
[312243847,1705702240788,-249.248004,0.0002298,7]
[312243848,1705702240797,-249.248004,0.0002298,7]
[312243849,1705702240806,-290.834862,0.0002298,7]
[312243850,1705702240816,-190.383556,0.0002298,7]
[312243851,1705702240825,-190.383556,0.0002298,7]
[312243852,1705702240834,-190.383556,0.0002298,7]
[312243853,1705702240843,-190.383556,0.0002298,7]
[312243854,1705702240852,-490.757942,0.0002298,7]
[312243855,1705702240862,-490.757942,0.0002298,7]
[312243856,1705702240871,-490.757942,0.0002298,7]
[312243857,1705702240880,-490.757942,0.0002298,7]
[312243858,1705702240889,-992.361723,0.0002298,7]
[312243859,1705702240898,-992.361723,0.0002298,7]
[312243860,1705702240908,-992.361723,0.0002298,7]
[312243861,1705702240918,-992.361723,0.0002298,7]
[312243862,1705702240928,-277.0008062,0.00022997,2]
[312243863,1705702240940,-268.42503343,0.00022998,2]
[312243864,1705702240952,-151.0,0.00022999,7]
[312243865,1705702240961,-249.248004,0.00022999,7]
[312243866,1705702240971,-249.248004,0.00022999,7]
[312243867,1705702240981,-190.383556,0.00022999,7]
[312243868,1705702240991,-190.383556,0.00022999,7]
[312243869,1705702241002,-490.757942,0.00022999,7]
[312243870,1705702241014,-490.757942,0.00022999,7]
[312243871,1705702241023,-992.361723,0.00022999,7]
[312243872,1705702241033,-992.361723,0.00022999,7]
[312243873,1705702241045,-156.84105949,0.00022999,2]
[312243874,1705702241055,-1278.13193774,0.00022999,2]
[312243875,1705702241066,-315.01212787,0.00022999,2]
[312243876,1705702241075,-331263.63089998,0.00022999,2]
[312243877,1705702241086,-150.0,0.00022999,2]
[312243878,1705702241097,-150.0,0.00022999,2]
[312243879,1705702241106,-150.0,0.00022999,2]
[312243880,1705702241116,-150.0,0.00022999,2]
[312243881,1705702241126,-151.0,0.00023,7]
[312243883,1705702241135,-249.248004,0.00023,7]
[312243884,1705702241144,-249.248004,0.00023,7]
[312243885,1705702241153,-190.383556,0.00023,7]
[312243886,1705702241162,-190.383556,0.00023,7]
[312243887,1705702241171,-490.757942,0.00023,7]
[312243888,1705702241180,-490.757942,0.00023,7]
[312243889,1705702241192,-992.361723,0.00023,7]
[312243890,1705702241201,-992.361723,0.00023,7]
[312243891,1705702241210,-227811.52633361,0.00023,3]
[312243892,1705702241220,-469150.68417073,0.00023,2]
[312243920,1705702245829,-62034.10632893,0.00021946,2]
[312243921,1705702245841,-2007.91950095,0.00021946,2]
[312243923,1705702764361,432.11,0.00018726,2]
[312243924,1705702800779,7426.99275157,0.00018726,2]
[312243925,1705702818795,7427.85150499,0.00018726,2]
[312243935,1705703243111,410.5,0.00018556,2]
[312243950,1705703432136,-500.0,0.00020375,2]
[312243951,1705703432146,-202.72914679,0.00020375,2]
[312243952,1705703432155,-441.92,0.00020376,2]
[312243953,1705703432165,-174.15786168,0.000204,2]
[312243954,1705703432175,-6776.80577972,0.00020467,2]
[312243956,1705703432184,-150.0,0.00020468,2]
[312243957,1705703432193,-150.0,0.00020468,2]
[312243958,1705703432203,-381.04,0.00020469,2]
[312243959,1705703432213,-904.74,0.00020469,2]
[312243960,1705703432222,-297.28,0.00020472,2]
[312243961,1705703432236,-738.54219566,0.000205,2]
[312243962,1705703432245,-298.44,0.00020524,2]
[312243963,1705703432254,-203.0,0.00020524,2]
[312243965,1705703432264,-2000.0,0.00020548,2]
[312243968,1705703432273,-558.08,0.00020592,2]
[312243971,1705703432282,-986.94440524,0.00020597,2]
[312243974,1705703432292,-156.31,0.00020601,2]
[312243977,1705703432301,-160.96,0.00020626,2]
[312243980,1705703432310,-999.99,0.0002065,2]
[312243983,1705703432319,-1377.3390751,0.00020698,2]
[312243985,1705703432329,-155.21,0.0002071,2]
[312243987,1705703432338,-1104.86730331,0.00020809,2]
[312243989,1705703432347,-410.5,0.00020819,2]
[312243992,1705703432356,-499.99,0.00020871,2]
[312243995,1705703432366,-154.92,0.00020966,2]
[312243998,1705703432375,-872.53054719,0.00021,2]
[312244001,1705703432384,-158.65,0.00021176,2]
[312244004,1705703432393,-154.92,0.00021176,2]
[312244007,1705703432402,-154.47,0.00021356,2]
[312244010,1705703432411,-154.92,0.00021386,2]
[312244013,1705703432420,-904.74,0.00021448,2]
[312244015,1705703432429,-250.0,0.000215,2]
[312244017,1705703432439,-250.0,0.000215,2]
[312244019,1705703432448,-154.47,0.00021589,2]
[312244021,1705703432457,-154.92,0.00021595,2]
[312244023,1705703432467,-1043.49228882,0.00021603,3]
[312244025,1705703432476,-379.70289,0.00021626,2]
[312244027,1705703432486,-223.21,0.00021644,2]
[312244029,1705703432495,-174.15786166,0.0002165,2]
[312244031,1705703432504,-160.96,0.00021701,2]
[312244033,1705703432514,-158.65,0.00021745,2]
[312244035,1705703432524,-611.5888,0.00021746,2]
[312244037,1705703432533,-3624.2701,0.00021746,2]
[312244039,1705703432543,-19133.17801413,0.000218,2]
[312244041,1705703432552,-154.92,0.00021805,2]
[312244043,1705703432561,-154.47,0.00021821,2]
[312244045,1705703432573,-315.01212787,0.00021844,2]
[312244047,1705703432584,-156.84105949,0.00021844,2]
[312244049,1705703432596,-277.0008062,0.00021844,2]
[312244052,1705703432606,-268.42503343,0.00021844,2]
[312244054,1705703432618,-244.64133608,0.00021844,2]
[312244056,1705703432627,-721.63252663,0.00021844,4]
[312244058,1705703432637,-265.36528495,0.00021844,2]
[312244060,1705703432647,-625.89989292,0.00021844,2]